[Event "Titled Tuesday Blitz May 03 Early 2022"]
[White "Karolczuk, Iwo"]
[Black "Nguyen Hong Nhung"]
[WhiteFideId "21816972"]
[BlackFideId "12412201"]
[WhiteElo "2277"]
[BlackElo "1758"]
[Result "0-1"]
[Round "07"]
[TimeControl "180+1"]
[Date "2022.05.03"]
[WhiteClock "0:00:01"]
[BlackClock "0:00:45"]

1. e4 {[%clk 0:03:00]}  c5 {[%clk 0:02:59]} 2. Nf3 {[%clk 0:03:00]}  e6 {[%clk 0:02:59]} 3. Be2 {[%clk 0:02:59]}  Nc6 {[%clk 0:02:59]} 4. O-O {[%clk 0:02:58]}  a6 {[%clk 0:02:58]} 5. Re1 {[%clk 0:02:47]}  Qc7 {[%clk 0:02:57]} 6. a3 {[%clk 0:02:40]}  Nf6 {[%clk 0:02:55]} 7. Bf1 {[%clk 0:02:32]}  d6 {[%clk 0:02:53]} 8. b4 {[%clk 0:02:30]}  cxb4 {[%clk 0:02:48]} 9. axb4 {[%clk 0:02:31]}  Nxb4 {[%clk 0:02:45]} 10. c3 {[%clk 0:02:30]}  Nc6 {[%clk 0:02:45]} 11. d4 {[%clk 0:02:31]}  Be7 {[%clk 0:02:45]} 12. d5 {[%clk 0:02:24]}  Nd8 {[%clk 0:02:39]} 13. Bb5+ {[%clk 0:01:27]}  Bd7 {[%clk 0:02:27]} 14. Bxd7+ {[%clk 0:01:26]}  Qxd7 {[%clk 0:02:28]} 15. c4 {[%clk 0:01:18]}  O-O {[%clk 0:02:26]} 16. Nc3 {[%clk 0:01:05]}  Rc8 {[%clk 0:02:18]} 17. Na4 {[%clk 0:01:04]}  Qc7 {[%clk 0:02:11]} 18. Bb2 {[%clk 0:00:32]}  b5 {[%clk 0:02:04]} 19. cxb5 {[%clk 0:00:31]}  axb5 {[%clk 0:02:05]} 20. Nc3 {[%clk 0:00:30]}  b4 {[%clk 0:02:01]} 21. Nb5 {[%clk 0:00:30]}  Qb6 {[%clk 0:01:58]} 22. Nbd4 {[%clk 0:00:29]}  Re8 {[%clk 0:01:46]} 23. Qd3 {[%clk 0:00:28]}  exd5 {[%clk 0:01:44]} 24. exd5 {[%clk 0:00:24]}  Nb7 {[%clk 0:01:37]} 25. Nc6 {[%clk 0:00:16]}  Nxd5 {[%clk 0:01:33]} 26. Na7 {[%clk 0:00:05]}  Ra8 {[%clk 0:01:02]} 27. Qxd5 {[%clk 0:00:05]}  Rxa7 {[%clk 0:01:00]} 28. Ng5 {[%clk 0:00:04]}  Nd8 {[%clk 0:00:55]} 29. Bd4 {[%clk 0:00:03]}  Qb7 {[%clk 0:00:55]} 30. Qb3 {[%clk 0:00:01]}  Rxa1 {[%clk 0:00:53]} 31. Bxa1 {[%clk 0:00:02]}  h6 {[%clk 0:00:51]} 32. Nf3 {[%clk 0:00:02]}  Qd7 {[%clk 0:00:49]} 33. Nd4 {[%clk 0:00:03]}  Bf6 {[%clk 0:00:48]} 34. Rd1 {[%clk 0:00:03]}  Qe7 {[%clk 0:00:47]} 35. Qxb4 {[%clk 0:00:03]}  Bxd4 {[%clk 0:00:45]} 36. Bxd4 {[%clk 0:00:01]}  Nc6 {[%clk 0:00:45]} 0-1


[Site "https://www.chess.com"]

[Event "Titled Tuesday Blitz May 03 Early 2022"]
[White "Karthikeyan, Murali"]
[Black "Al-Tarboush, Ward"]
[WhiteFideId "5074452"]
[BlackFideId "7601450"]
[WhiteElo "2579"]
[BlackElo "2276"]
[Result "0-1"]
[Round "07"]
[TimeControl "180+1"]
[Date "2022.05.03"]
[WhiteClock "0:00:03"]
[BlackClock "0:00:05"]

1. Nf3 {[%clk 0:03:00]}  d5 {[%clk 0:02:58]} 2. g3 {[%clk 0:03:00]}  Nf6 {[%clk 0:02:58]} 3. Bg2 {[%clk 0:03:00]}  c6 {[%clk 0:02:58]} 4. O-O {[%clk 0:03:00]}  Bf5 {[%clk 0:02:59]} 5. d3 {[%clk 0:03:00]}  e6 {[%clk 0:02:57]} 6. Nbd2 {[%clk 0:03:01]}  Nbd7 {[%clk 0:02:56]} 7. b3 {[%clk 0:02:58]}  h6 {[%clk 0:02:55]} 8. Bb2 {[%clk 0:02:58]}  Be7 {[%clk 0:02:55]} 9. Re1 {[%clk 0:02:58]}  O-O {[%clk 0:02:28]} 10. e4 {[%clk 0:02:58]}  Bh7 {[%clk 0:02:26]} 11. Ne5 {[%clk 0:02:52]}  Nxe5 {[%clk 0:02:24]} 12. Bxe5 {[%clk 0:02:53]}  a5 {[%clk 0:02:19]} 13. a4 {[%clk 0:02:48]}  Qd7 {[%clk 0:02:13]} 14. h4 {[%clk 0:02:43]}  Rfe8 {[%clk 0:01:37]} 15. Bb2 {[%clk 0:02:21]}  Qc7 {[%clk 0:01:35]} 16. e5 {[%clk 0:02:16]}  Nd7 {[%clk 0:01:34]} 17. Nf1 {[%clk 0:02:16]}  b6 {[%clk 0:01:34]} 18. Nh2 {[%clk 0:02:15]}  b5 {[%clk 0:01:33]} 19. Ng4 {[%clk 0:01:58]}  bxa4 {[%clk 0:01:31]} 20. Rxa4 {[%clk 0:01:53]}  Bb4 {[%clk 0:01:25]} 21. Re2 {[%clk 0:00:48]}  Nb6 {[%clk 0:01:20]} 22. Ra1 {[%clk 0:00:47]}  Bf8 {[%clk 0:01:15]} 23. Bc1 {[%clk 0:00:34]}  a4 {[%clk 0:01:13]} 24. bxa4 {[%clk 0:00:32]}  Nxa4 {[%clk 0:01:14]} 25. Qe1 {[%clk 0:00:27]}  Reb8 {[%clk 0:01:03]} 26. Bf4 {[%clk 0:00:13]}  Bb4 {[%clk 0:01:01]} 27. Bd2 {[%clk 0:00:12]}  Bf8 {[%clk 0:00:54]} 28. f4 {[%clk 0:00:10]}  c5 {[%clk 0:00:49]} 29. Kh2 {[%clk 0:00:10]}  c4 {[%clk 0:00:43]} 30. dxc4 {[%clk 0:00:09]}  Qxc4 {[%clk 0:00:43]} 31. Ne3 {[%clk 0:00:10]}  Qc5 {[%clk 0:00:39]} 32. f5 {[%clk 0:00:08]}  Nb6 {[%clk 0:00:21]} 33. fxe6 {[%clk 0:00:05]}  fxe6 {[%clk 0:00:20]} 34. Bh3 {[%clk 0:00:06]}  Qc6 {[%clk 0:00:16]} 35. Rb1 {[%clk 0:00:04]}  d4 {[%clk 0:00:16]} 36. Ng2 {[%clk 0:00:04]}  Nd5 {[%clk 0:00:16]} 37. Rc1 {[%clk 0:00:03]}  Rb2 {[%clk 0:00:15]} 38. c4 {[%clk 0:00:03]}  dxc3 {[%clk 0:00:14]} 39. Bxc3 {[%clk 0:00:03]}  Rxe2 {[%clk 0:00:14]} 40. Qxe2 {[%clk 0:00:03]}  Nxc3 {[%clk 0:00:15]} 41. Qe3 {[%clk 0:00:03]}  Rc8 {[%clk 0:00:15]} 42. Nf4 {[%clk 0:00:03]}  Bf5 {[%clk 0:00:14]} 43. Bxf5 {[%clk 0:00:03]}  exf5 {[%clk 0:00:14]} 44. Ne2 {[%clk 0:00:03]}  Bb4 {[%clk 0:00:11]} 45. e6 {[%clk 0:00:04]}  Qc5 {[%clk 0:00:06]} 46. Qf3 {[%clk 0:00:03]}  Qb5 {[%clk 0:00:04]} 47. Nxc3 {[%clk 0:00:03]}  Bxc3 {[%clk 0:00:04]} 48. Rxc3 {[%clk 0:00:03]}  Qb2+ {[%clk 0:00:05]} 0-1


[Site "https://www.chess.com"]

[Event "Titled Tuesday Blitz May 03 Early 2022"]
[White "Kashtanov, Ruslan"]
[Black "Rohith Krishna S"]
[WhiteFideId "4124871"]
[BlackFideId "46617051"]
[WhiteElo "2486"]
[BlackElo "2734"]
[Result "0-1"]
[Round "07"]
[TimeControl "180+1"]
[Date "2022.05.03"]
[WhiteClock "0:00:06"]
[BlackClock "0:00:12"]

1. d4 {[%clk 0:02:55]}  d5 {[%clk 0:02:43]} 2. c4 {[%clk 0:02:53]}  e6 {[%clk 0:02:40]} 3. Nf3 {[%clk 0:02:53]}  Nf6 {[%clk 0:02:38]} 4. g3 {[%clk 0:02:52]}  Be7 {[%clk 0:02:35]} 5. Bg2 {[%clk 0:02:51]}  dxc4 {[%clk 0:02:35]} 6. Qa4+ {[%clk 0:02:35]}  Nc6 {[%clk 0:02:30]} 7. O-O {[%clk 0:02:24]}  O-O {[%clk 0:02:23]} 8. Rd1 {[%clk 0:02:13]}  a6 {[%clk 0:02:22]} 9. Nc3 {[%clk 0:02:01]}  Nb4 {[%clk 0:02:14]} 10. Ne5 {[%clk 0:01:42]}  Rb8 {[%clk 0:02:09]} 11. a3 {[%clk 0:01:36]}  Nbd5 {[%clk 0:02:00]} 12. Qxc4 {[%clk 0:01:27]}  b5 {[%clk 0:01:38]} 13. Qd3 {[%clk 0:01:19]}  Bb7 {[%clk 0:01:37]} 14. Nxd5 {[%clk 0:01:05]}  exd5 {[%clk 0:01:33]} 15. Bf4 {[%clk 0:01:00]}  Ne4 {[%clk 0:01:31]} 16. Rac1 {[%clk 0:00:57]}  c5 {[%clk 0:01:06]} 17. dxc5 {[%clk 0:00:51]}  Nxc5 {[%clk 0:01:07]} 18. Qe3 {[%clk 0:00:44]}  Ne6 {[%clk 0:01:01]} 19. Nc6 {[%clk 0:00:35]}  Bxc6 {[%clk 0:00:53]} 20. Bxb8 {[%clk 0:00:35]}  d4 {[%clk 0:00:48]} 21. Rxc6 {[%clk 0:00:19]}  dxe3 {[%clk 0:00:46]} 22. Rxd8 {[%clk 0:00:20]}  exf2+ {[%clk 0:00:45]} 23. Kxf2 {[%clk 0:00:18]}  Rxd8 {[%clk 0:00:46]} 24. Ba7 {[%clk 0:00:16]}  h6 {[%clk 0:00:32]} 25. b4 {[%clk 0:00:13]}  Rd2 {[%clk 0:00:20]} 26. Rxa6 {[%clk 0:00:12]}  Bf6 {[%clk 0:00:19]} 27. Be3 {[%clk 0:00:12]}  Ra2 {[%clk 0:00:19]} 28. Ra5 {[%clk 0:00:11]}  Nd4 {[%clk 0:00:16]} 29. Bd5 {[%clk 0:00:08]}  Rxe2+ {[%clk 0:00:15]} 30. Kf1 {[%clk 0:00:08]}  Rxe3 {[%clk 0:00:16]} 31. Ra8+ {[%clk 0:00:06]}  Kh7 {[%clk 0:00:15]} 32. Bxf7 {[%clk 0:00:07]}  g5 {[%clk 0:00:15]} 33. Rb8 {[%clk 0:00:05]}  Be5 {[%clk 0:00:14]} 34. Rb7 {[%clk 0:00:06]}  Kg7 {[%clk 0:00:14]} 35. Bd5+ {[%clk 0:00:06]}  Kf6 {[%clk 0:00:15]} 36. a4 {[%clk 0:00:06]}  bxa4 {[%clk 0:00:14]} 37. Rb6+ {[%clk 0:00:07]}  Kg7 {[%clk 0:00:14]} 38. b5 {[%clk 0:00:07]}  a3 {[%clk 0:00:11]} 39. Rb7+ {[%clk 0:00:07]}  Kf6 {[%clk 0:00:11]} 40. b6 {[%clk 0:00:08]}  a2 {[%clk 0:00:11]} 41. Bxa2 {[%clk 0:00:08]}  Ra3 {[%clk 0:00:11]} 42. Bd5 {[%clk 0:00:08]}  Ra1+ {[%clk 0:00:12]} 43. Kf2 {[%clk 0:00:07]}  Rb1 {[%clk 0:00:12]} 44. Ke3 {[%clk 0:00:07]}  Nf5+ {[%clk 0:00:12]} 45. Ke4 {[%clk 0:00:06]}  Nd6+ {[%clk 0:00:12]} 0-1


[Site "https://www.chess.com"]

[Event "Titled Tuesday Blitz May 03 Early 2022"]
[White "Khabinets, Ivan"]
[Black "Navalgund, Niranjan"]
[WhiteFideId "14115980"]
[BlackFideId "5030854"]
[WhiteElo "2114"]
[BlackElo "2290"]
[Result "0-1"]
[Round "07"]
[TimeControl "180+1"]
[Date "2022.05.03"]
[WhiteClock "0:00:03"]
[BlackClock "0:00:21"]

1. e4 {[%clk 0:02:33]}  e5 {[%clk 0:02:59]} 2. Nf3 {[%clk 0:02:33]}  Nc6 {[%clk 0:02:59]} 3. Bb5 {[%clk 0:02:32]}  g5 {[%clk 0:02:56]} 4. d4 {[%clk 0:02:26]}  exd4 {[%clk 0:02:53]} 5. Bxg5 {[%clk 0:02:24]}  Be7 {[%clk 0:02:53]} 6. Bxe7 {[%clk 0:02:22]}  Qxe7 {[%clk 0:02:48]} 7. O-O {[%clk 0:02:22]}  Nf6 {[%clk 0:02:31]} 8. Nxd4 {[%clk 0:02:16]}  Qe5 {[%clk 0:02:23]} 9. Bxc6 {[%clk 0:02:01]}  dxc6 {[%clk 0:02:21]} 10. Nc3 {[%clk 0:02:01]}  Rg8 {[%clk 0:02:19]} 11. f4 {[%clk 0:01:59]}  Qc5 {[%clk 0:02:19]} 12. e5 {[%clk 0:01:50]}  Bg4 {[%clk 0:02:18]} 13. Qd2 {[%clk 0:01:32]}  O-O-O {[%clk 0:02:17]} 14. exf6 {[%clk 0:01:29]}  Rxd4 {[%clk 0:02:16]} 15. Qf2 {[%clk 0:01:27]}  Bh3 {[%clk 0:02:16]} 16. Ne4 {[%clk 0:01:02]}  Qb6 {[%clk 0:01:37]} 17. Ng5 {[%clk 0:00:47]}  Bxg2 {[%clk 0:01:24]} 18. Kxg2 {[%clk 0:00:35]}  h6 {[%clk 0:01:24]} 19. h4 {[%clk 0:00:35]}  hxg5 {[%clk 0:01:23]} 20. hxg5 {[%clk 0:00:36]}  c5 {[%clk 0:01:10]} 21. c3 {[%clk 0:00:35]}  Re4 {[%clk 0:01:07]} 22. Rae1 {[%clk 0:00:34]}  Rxe1 {[%clk 0:01:05]} 23. Rxe1 {[%clk 0:00:33]}  Qxf6 {[%clk 0:01:06]} 24. Re8+ {[%clk 0:00:26]}  Kd7 {[%clk 0:01:05]} 25. Rxg8 {[%clk 0:00:26]}  Qf5 {[%clk 0:01:05]} 26. Qd2+ {[%clk 0:00:25]}  Kc6 {[%clk 0:01:04]} 27. Re8 {[%clk 0:00:20]}  Qg4+ {[%clk 0:01:04]} 28. Kf2 {[%clk 0:00:21]}  Qh4+ {[%clk 0:01:04]} 29. Ke2 {[%clk 0:00:21]}  Qg4+ {[%clk 0:01:04]} 30. Ke1 {[%clk 0:00:20]}  Qg1+ {[%clk 0:01:01]} 31. Ke2 {[%clk 0:00:21]}  Qg4+ {[%clk 0:01:01]} 32. Kd3 {[%clk 0:00:21]}  Qd7+ {[%clk 0:00:57]} 33. Kc2 {[%clk 0:00:21]}  Qxe8 {[%clk 0:00:58]} 34. Qg2+ {[%clk 0:00:21]}  Kb6 {[%clk 0:00:58]} 35. Qf2 {[%clk 0:00:19]}  Qe4+ {[%clk 0:00:58]} 36. Kc1 {[%clk 0:00:20]}  Qh1+ {[%clk 0:00:57]} 37. Kc2 {[%clk 0:00:20]}  Qe4+ {[%clk 0:00:57]} 38. Kb3 {[%clk 0:00:13]}  Kb5 {[%clk 0:00:50]} 39. a3 {[%clk 0:00:06]}  Qb1 {[%clk 0:00:47]} 40. Qe2+ {[%clk 0:00:06]}  Kb6 {[%clk 0:00:46]} 41. Qd2 {[%clk 0:00:04]}  a5 {[%clk 0:00:40]} 42. c4 {[%clk 0:00:05]}  Qe4 {[%clk 0:00:37]} 43. a4 {[%clk 0:00:06]}  Ka6 {[%clk 0:00:34]} 44. Kc3 {[%clk 0:00:04]}  Qf3+ {[%clk 0:00:32]} 45. Kc2 {[%clk 0:00:04]}  Qe4+ {[%clk 0:00:32]} 46. Kc3 {[%clk 0:00:05]}  Qf3+ {[%clk 0:00:32]} 47. Kc2 {[%clk 0:00:05]}  b6 {[%clk 0:00:32]} 48. b3 {[%clk 0:00:05]}  Ka7 {[%clk 0:00:30]} 49. Kb2 {[%clk 0:00:05]}  Qe4 {[%clk 0:00:30]} 50. Qf2 {[%clk 0:00:05]}  Qd3 {[%clk 0:00:30]} 51. f5 {[%clk 0:00:05]}  Qe4 {[%clk 0:00:29]} 52. Kc3 {[%clk 0:00:05]}  Qe5+ {[%clk 0:00:29]} 53. Kc2 {[%clk 0:00:05]}  Qa1 {[%clk 0:00:28]} 54. Qf4 {[%clk 0:00:04]}  Qa2+ {[%clk 0:00:26]} 55. Kc3 {[%clk 0:00:04]}  Qa1+ {[%clk 0:00:26]} 56. Kd3 {[%clk 0:00:04]}  Qd1+ {[%clk 0:00:26]} 57. Ke4 {[%clk 0:00:04]}  Kb7 {[%clk 0:00:21]} 58. Qf3 {[%clk 0:00:03]}  Qd4# {[%clk 0:00:21]} 0-1


[Site "https://www.chess.com"]

[Event "Titled Tuesday Blitz May 03 Early 2022"]
[White "Khokhlova, Daria"]
[Black "Gurevich, Dmitry"]
[WhiteFideId "24182729"]
[BlackFideId "2000407"]
[WhiteElo "2034"]
[BlackElo "2506"]
[Result "0-1"]
[Round "07"]
[TimeControl "180+1"]
[Date "2022.05.03"]
[WhiteClock "0:00:13"]
[BlackClock "0:01:01"]

1. d4 {[%clk 0:03:00]}  Nf6 {[%clk 0:02:58]} 2. c4 {[%clk 0:03:00]}  a6 {[%clk 0:02:58]} 3. Nc3 {[%clk 0:02:57]}  c5 {[%clk 0:02:57]} 4. d5 {[%clk 0:02:56]}  b5 {[%clk 0:02:56]} 5. cxb5 {[%clk 0:02:56]}  axb5 {[%clk 0:02:56]} 6. Nxb5 {[%clk 0:02:56]}  Qa5+ {[%clk 0:02:55]} 7. Nc3 {[%clk 0:02:55]}  Bb7 {[%clk 0:02:55]} 8. Bd2 {[%clk 0:02:40]}  Qb6 {[%clk 0:02:55]} 9. e4 {[%clk 0:02:37]}  e6 {[%clk 0:02:54]} 10. Bc4 {[%clk 0:02:31]}  Nxe4 {[%clk 0:02:52]} 11. Nxe4 {[%clk 0:02:00]}  exd5 {[%clk 0:02:51]} 12. Bxd5 {[%clk 0:01:52]}  Bxd5 {[%clk 0:02:50]} 13. Qe2 {[%clk 0:01:38]}  Qe6 {[%clk 0:02:44]} 14. f3 {[%clk 0:01:29]}  Nc6 {[%clk 0:02:36]} 15. Bc3 {[%clk 0:01:17]}  Bc4 {[%clk 0:02:34]} 16. Qe3 {[%clk 0:00:55]}  d5 {[%clk 0:02:32]} 17. b3 {[%clk 0:00:54]}  Ba6 {[%clk 0:02:20]} 18. Nh3 {[%clk 0:00:50]}  d4 {[%clk 0:01:56]} 19. Qf4 {[%clk 0:00:42]}  dxc3 {[%clk 0:01:52]} 20. Kf2 {[%clk 0:00:36]}  Qe5 {[%clk 0:01:45]} 21. Qc1 {[%clk 0:00:25]}  Qd4+ {[%clk 0:01:43]} 22. Kg3 {[%clk 0:00:24]}  Bd6+ {[%clk 0:01:42]} 23. Nxd6+ {[%clk 0:00:21]}  Qxd6+ {[%clk 0:01:41]} 24. Kf2 {[%clk 0:00:21]}  Qd2+ {[%clk 0:01:32]} 25. Qxd2 {[%clk 0:00:21]}  cxd2 {[%clk 0:01:32]} 26. Rhd1 {[%clk 0:00:21]}  O-O-O {[%clk 0:01:31]} 27. Nf4 {[%clk 0:00:20]}  Rhe8 {[%clk 0:01:29]} 28. a4 {[%clk 0:00:19]}  g5 {[%clk 0:01:26]} 29. Nh3 {[%clk 0:00:19]}  h6 {[%clk 0:01:26]} 30. Ra2 {[%clk 0:00:18]}  Re2+ {[%clk 0:01:23]} 31. Kg3 {[%clk 0:00:18]}  f5 {[%clk 0:01:21]} 32. Ng1 {[%clk 0:00:18]}  Re1 {[%clk 0:01:19]} 33. Raa1 {[%clk 0:00:17]}  Rxd1 {[%clk 0:01:13]} 34. Rxd1 {[%clk 0:00:17]}  Na5 {[%clk 0:01:08]} 35. f4 {[%clk 0:00:16]}  Nxb3 {[%clk 0:01:07]} 36. fxg5 {[%clk 0:00:15]}  hxg5 {[%clk 0:01:07]} 37. Nf3 {[%clk 0:00:15]}  Rd3 {[%clk 0:01:06]} 38. Kf2 {[%clk 0:00:14]}  c4 {[%clk 0:01:03]} 39. Ne5 {[%clk 0:00:14]}  Rd5 {[%clk 0:01:02]} 40. Nf3 {[%clk 0:00:13]}  c3 {[%clk 0:01:01]} 0-1


[Site "https://www.chess.com"]

[Event "Titled Tuesday Blitz May 03 Early 2022"]
[White "Kohler, Aran"]
[Black "Dang, Hoang Son"]
[WhiteFideId "1002856"]
[BlackFideId "12402435"]
[WhiteElo "2306"]
[BlackElo "2252"]
[Result "0-1"]
[Round "07"]
[TimeControl "180+1"]
[Date "2022.05.03"]
[WhiteClock "0:00:17"]
[BlackClock "0:00:14"]

1. d4 {[%clk 0:02:59]}  Nf6 {[%clk 0:03:00]} 2. Nf3 {[%clk 0:02:59]}  g6 {[%clk 0:03:00]} 3. Bg5 {[%clk 0:02:59]}  Bg7 {[%clk 0:03:00]} 4. Nbd2 {[%clk 0:02:58]}  O-O {[%clk 0:03:01]} 5. c3 {[%clk 0:02:58]}  d6 {[%clk 0:03:00]} 6. e3 {[%clk 0:02:57]}  c5 {[%clk 0:03:00]} 7. Bd3 {[%clk 0:02:56]}  Nc6 {[%clk 0:02:58]} 8. Qe2 {[%clk 0:02:47]}  h6 {[%clk 0:02:55]} 9. Bxf6 {[%clk 0:02:34]}  Bxf6 {[%clk 0:02:52]} 10. O-O-O {[%clk 0:02:33]}  cxd4 {[%clk 0:02:44]} 11. exd4 {[%clk 0:02:32]}  Rb8 {[%clk 0:02:32]} 12. Kb1 {[%clk 0:02:30]}  b5 {[%clk 0:02:30]} 13. Ne4 {[%clk 0:02:14]}  Bg7 {[%clk 0:02:28]} 14. d5 {[%clk 0:01:35]}  Na5 {[%clk 0:02:17]} 15. Ka1 {[%clk 0:01:33]}  b4 {[%clk 0:02:16]} 16. c4 {[%clk 0:01:32]}  b3 {[%clk 0:02:10]} 17. a3 {[%clk 0:01:31]}  Ba6 {[%clk 0:01:56]} 18. Rc1 {[%clk 0:01:19]}  Nb7 {[%clk 0:01:54]} 19. Kb1 {[%clk 0:01:15]}  f5 {[%clk 0:01:47]} 20. Nc3 {[%clk 0:01:14]}  Nc5 {[%clk 0:01:47]} 21. Nb5 {[%clk 0:01:00]}  Bxb5 {[%clk 0:01:12]} 22. cxb5 {[%clk 0:00:59]}  Na4 {[%clk 0:01:13]} 23. Qe6+ {[%clk 0:00:54]}  Kh7 {[%clk 0:01:11]} 24. h4 {[%clk 0:00:55]}  Bxb2 {[%clk 0:00:34]} 25. Ng5+ {[%clk 0:00:38]}  Kg7 {[%clk 0:00:18]} 26. h5 {[%clk 0:00:23]}  Rf6 {[%clk 0:00:17]} 27. hxg6 {[%clk 0:00:17]}  Bxc1 {[%clk 0:00:14]} 0-1


[Site "https://www.chess.com"]

[Event "Titled Tuesday Blitz May 03 Early 2022"]
[White "Lauridsen, Jesper Morch"]
[Black "Borgaonkar Akshay"]
[WhiteFideId "1401890"]
[BlackFideId "25639110"]
[WhiteElo "2233"]
[BlackElo "1624"]
[Result "1-0"]
[Round "07"]
[TimeControl "180+1"]
[Date "2022.05.03"]
[WhiteClock "0:01:01"]
[BlackClock "0:01:06"]

1. e4 {[%clk 0:03:00]}  c5 {[%clk 0:02:55]} 2. d4 {[%clk 0:03:01]}  e6 {[%clk 0:02:55]} 3. Nf3 {[%clk 0:03:00]}  cxd4 {[%clk 0:02:56]} 4. Nxd4 {[%clk 0:02:59]}  Nc6 {[%clk 0:02:56]} 5. Nc3 {[%clk 0:02:59]}  Qc7 {[%clk 0:02:56]} 6. Be3 {[%clk 0:02:56]}  a6 {[%clk 0:02:56]} 7. Be2 {[%clk 0:02:56]}  Nf6 {[%clk 0:02:56]} 8. O-O {[%clk 0:02:56]}  Be7 {[%clk 0:02:56]} 9. f4 {[%clk 0:02:55]}  d6 {[%clk 0:02:56]} 10. Kh1 {[%clk 0:02:53]}  O-O {[%clk 0:02:54]} 11. Qd2 {[%clk 0:02:47]}  Nxd4 {[%clk 0:02:52]} 12. Qxd4 {[%clk 0:02:46]}  b5 {[%clk 0:02:52]} 13. e5 {[%clk 0:02:43]}  dxe5 {[%clk 0:02:49]} 14. fxe5 {[%clk 0:02:41]}  Nd7 {[%clk 0:02:49]} 15. Bf3 {[%clk 0:02:39]}  Rb8 {[%clk 0:02:48]} 16. Bf4 {[%clk 0:02:10]}  b4 {[%clk 0:02:47]} 17. Ne4 {[%clk 0:02:09]}  Bb7 {[%clk 0:02:43]} 18. Nd6 {[%clk 0:01:56]}  Bxf3 {[%clk 0:02:42]} 19. Rxf3 {[%clk 0:01:56]}  Rfd8 {[%clk 0:02:21]} 20. Bh6 {[%clk 0:01:44]}  gxh6 {[%clk 0:01:29]} 21. Rxf7 {[%clk 0:01:25]}  Bg5 {[%clk 0:01:06]} 22. Qd3 {[%clk 0:01:01]} 1-0


[Site "https://www.chess.com"]

[Event "Titled Tuesday Blitz May 03 Early 2022"]
[White "Levitskiy, Andrey"]
[Black "Leiva, Gianmarco"]
[WhiteFideId "14132885"]
[BlackFideId "3804399"]
[WhiteElo "2301"]
[BlackElo "2323"]
[Result "1/2-1/2"]
[Round "07"]
[TimeControl "180+1"]
[Date "2022.05.03"]
[WhiteClock "0:00:05"]
[BlackClock "0:00:06"]

1. e4 {[%clk 0:03:00]}  g6 {[%clk 0:02:45]} 2. d4 {[%clk 0:02:59]}  Bg7 {[%clk 0:02:46]} 3. Nc3 {[%clk 0:03:00]}  d6 {[%clk 0:02:43]} 4. Be3 {[%clk 0:03:00]}  a6 {[%clk 0:02:38]} 5. Qd2 {[%clk 0:03:00]}  b5 {[%clk 0:02:36]} 6. h4 {[%clk 0:02:59]}  Nf6 {[%clk 0:02:36]} 7. f3 {[%clk 0:02:56]}  h5 {[%clk 0:02:35]} 8. Nh3 {[%clk 0:02:55]}  Bxh3 {[%clk 0:02:24]} 9. Rxh3 {[%clk 0:02:51]}  Nbd7 {[%clk 0:02:24]} 10. O-O-O {[%clk 0:02:42]}  c6 {[%clk 0:02:09]} 11. Kb1 {[%clk 0:02:24]}  Qa5 {[%clk 0:02:08]} 12. Bd3 {[%clk 0:02:18]}  Nb6 {[%clk 0:02:05]} 13. e5 {[%clk 0:02:11]}  Nfd5 {[%clk 0:01:55]} 14. Nxd5 {[%clk 0:02:04]}  Qxd2 {[%clk 0:01:54]} 15. Nc7+ {[%clk 0:01:50]}  Kd7 {[%clk 0:01:55]} 16. Bxd2 {[%clk 0:01:47]}  Kxc7 {[%clk 0:01:54]} 17. f4 {[%clk 0:01:29]}  Nd5 {[%clk 0:01:42]} 18. c4 {[%clk 0:01:21]}  bxc4 {[%clk 0:01:41]} 19. Bxc4 {[%clk 0:01:22]}  Kd7 {[%clk 0:01:11]} 20. Re1 {[%clk 0:00:57]}  Bh6 {[%clk 0:00:59]} 21. Rb3 {[%clk 0:00:43]}  Rhb8 {[%clk 0:00:18]} 22. g3 {[%clk 0:00:42]}  Rxb3 {[%clk 0:00:15]} 23. Bxb3 {[%clk 0:00:43]}  e6 {[%clk 0:00:13]} 24. Rc1 {[%clk 0:00:37]}  Bf8 {[%clk 0:00:13]} 25. Ba4 {[%clk 0:00:27]}  Rc8 {[%clk 0:00:12]} 26. a3 {[%clk 0:00:27]}  Nb6 {[%clk 0:00:11]} 27. Bb3 {[%clk 0:00:23]}  Be7 {[%clk 0:00:09]} 28. Ka2 {[%clk 0:00:23]}  Bd8 {[%clk 0:00:08]} 29. Bb4 {[%clk 0:00:20]}  Be7 {[%clk 0:00:03]} 30. Ba5 {[%clk 0:00:19]}  Nd5 {[%clk 0:00:03]} 31. Bd2 {[%clk 0:00:17]}  Bd8 {[%clk 0:00:03]} 32. Ba4 {[%clk 0:00:17]}  Ne7 {[%clk 0:00:03]} 33. Be3 {[%clk 0:00:12]}  Bb6 {[%clk 0:00:02]} 34. Bf2 {[%clk 0:00:11]}  Rc7 {[%clk 0:00:02]} 35. b4 {[%clk 0:00:11]}  d5 {[%clk 0:00:03]} 36. Kb3 {[%clk 0:00:09]}  Nf5 {[%clk 0:00:03]} 37. Kc3 {[%clk 0:00:09]}  Ba7 {[%clk 0:00:03]} 38. Kd3 {[%clk 0:00:09]}  Bb6 {[%clk 0:00:04]} 39. Rc2 {[%clk 0:00:10]}  Rc8 {[%clk 0:00:05]} 40. Rc1 {[%clk 0:00:10]}  Nh6 {[%clk 0:00:05]} 41. Rc2 {[%clk 0:00:10]}  Ng4 {[%clk 0:00:06]} 42. Bg1 {[%clk 0:00:10]}  Nh6 {[%clk 0:00:06]} 43. Bf2 {[%clk 0:00:08]}  Rc7 {[%clk 0:00:06]} 44. Rc1 {[%clk 0:00:08]}  Ng8 {[%clk 0:00:07]} 45. Bd1 {[%clk 0:00:08]}  Ne7 {[%clk 0:00:07]} 46. Be2 {[%clk 0:00:08]}  Nf5 {[%clk 0:00:07]} 47. Rd1 {[%clk 0:00:08]}  Nh6 {[%clk 0:00:08]} 48. Kc2 {[%clk 0:00:08]}  a5 {[%clk 0:00:08]} 49. Kb3 {[%clk 0:00:08]}  axb4 {[%clk 0:00:09]} 50. axb4 {[%clk 0:00:09]}  Ra7 {[%clk 0:00:09]} 51. Bd3 {[%clk 0:00:07]}  Ng4 {[%clk 0:00:09]} 52. Bg1 {[%clk 0:00:07]}  Kc7 {[%clk 0:00:09]} 53. Rc1 {[%clk 0:00:07]}  Kb7 {[%clk 0:00:09]} 54. b5 {[%clk 0:00:07]}  cxb5 {[%clk 0:00:09]} 55. Bxb5 {[%clk 0:00:08]}  Kb8 {[%clk 0:00:08]} 56. Rc6 {[%clk 0:00:08]}  Bc7 {[%clk 0:00:09]} 57. Ba6 {[%clk 0:00:07]}  Nh6 {[%clk 0:00:08]} 58. Ka4 {[%clk 0:00:07]}  Nf5 {[%clk 0:00:09]} 59. Kb5 {[%clk 0:00:07]}  Nxg3 {[%clk 0:00:08]} 60. Rc3 {[%clk 0:00:06]}  Ne2 {[%clk 0:00:08]} 61. Rb3 {[%clk 0:00:04]}  Nxg1 {[%clk 0:00:08]} 62. Kc6+ {[%clk 0:00:04]}  Ka8 {[%clk 0:00:07]} 63. Bb7+ {[%clk 0:00:05]}  Rxb7 {[%clk 0:00:07]} 64. Rxb7 {[%clk 0:00:04]}  Bb8 {[%clk 0:00:07]} 65. Rxf7 {[%clk 0:00:04]}  Nf3 {[%clk 0:00:08]} 66. Kd7 {[%clk 0:00:04]}  Nxd4 {[%clk 0:00:07]} 67. Rf6 {[%clk 0:00:04]}  Nf5 {[%clk 0:00:04]} 68. Kxe6 {[%clk 0:00:03]}  d4 {[%clk 0:00:04]} 69. Rxg6 {[%clk 0:00:03]}  Nxh4 {[%clk 0:00:04]} 70. Rg1 {[%clk 0:00:02]}  Nf3 {[%clk 0:00:04]} 71. Rf1 {[%clk 0:00:02]}  Nh2 {[%clk 0:00:05]} 72. Rd1 {[%clk 0:00:02]}  Nf3 {[%clk 0:00:05]} 73. f5 {[%clk 0:00:03]}  h4 {[%clk 0:00:05]} 74. f6 {[%clk 0:00:03]}  h3 {[%clk 0:00:06]} 75. f7 {[%clk 0:00:03]}  Ng5+ {[%clk 0:00:07]} 76. Ke7 {[%clk 0:00:03]}  Nxf7 {[%clk 0:00:07]} 77. Kxf7 {[%clk 0:00:04]}  Bxe5 {[%clk 0:00:07]} 78. Ke6 {[%clk 0:00:05]}  Bg7 {[%clk 0:00:05]} 79. Kf5 {[%clk 0:00:05]}  Kb7 {[%clk 0:00:04]} 80. Kg4 {[%clk 0:00:05]}  h2 {[%clk 0:00:05]} 81. Kh3 {[%clk 0:00:05]}  Be5 {[%clk 0:00:05]} 82. Re1 {[%clk 0:00:04]}  Kc6 {[%clk 0:00:05]} 83. Kg2 {[%clk 0:00:02]}  Kd5 {[%clk 0:00:05]} 84. Kf3 {[%clk 0:00:03]}  Kc4 {[%clk 0:00:05]} 85. Kg2 {[%clk 0:00:03]}  Kc3 {[%clk 0:00:04]} 86. Rxe5 {[%clk 0:00:03]}  d3 {[%clk 0:00:05]} 87. Rd5 {[%clk 0:00:03]}  d2 {[%clk 0:00:05]} 88. Kxh2 {[%clk 0:00:04]}  Kc2 {[%clk 0:00:06]} 89. Rc5+ {[%clk 0:00:04]}  Kd3 {[%clk 0:00:05]} 90. Rd5+ {[%clk 0:00:05]}  Ke2 {[%clk 0:00:05]} 91. Rxd2+ {[%clk 0:00:05]}  Kxd2 {[%clk 0:00:06]} 1/2-1/2


[Site "https://www.chess.com"]